[Event "NOR-ch Various 2019"]
[Site "Larvik"]
[Date "2019.07.07"]
[Round "2.38"]
[White "Fossan, Andreas"]
[Black "Skotheim, Andreas"]
[Result "1/2-1/2"]
[ECO "E20"]
[WhiteElo "2023"]
[BlackElo "2138"]
[Annotator "NA"]
[PlyCount "105"]
[EventDate "2019.07.06"]
[EventType "swiss"]
[EventCountry "NOR"]
[SourceTitle "playchess.com"]
[Source "ChessBase"]
[SourceQuality "1"]
[TimeControl "40/5400+30:1800+30"]

1. d4 {[%emt 0:00:00]} Nf6 {[%emt 0:00:00]} 2. c4 {[%emt 0:00:44]} e6 {[%emt 0:00:00]} 3. Nc3 {[%emt 0:00:04]} Bb4 {[%emt 0:00:14]} 4. f3 {[%emt 0:00:06]} Nc6 {[%emt 0:01:08]} 5. Nh3 {[%emt 0:10:44]} d5 {[%emt 0:06:46]} 6. a3 {[%emt 0:06:13]} Bxc3+ {[%emt 0:04:03]} 7. bxc3 {[%emt 0:00:03]} O-O {[%emt 0:26:59]} 8. e3 {[%emt 0:11:34]} e5 {[%emt 0:07:46]} 9. Nf2 {[%emt 0:08:28]} Re8 {[%emt 0:02:32]} 10. Be2 {[%emt 0:10:46]} dxc4 {[%emt 0:02:03]} 11. O-O {[%emt 0:04:24]} Be6 {[%emt 0:01:35]} 12. Rb1 {[%emt 0:02:12]} Rb8 {[%emt 0:03:42]} 13. Ne4 {[%emt 0:05:38]} exd4 {[%emt 0:10:14]} 14. exd4 {[%emt 0:02:19]} Nd5 {[%emt 0:08:15]} 15. Qc2 {[%emt 0:02:49]} b5 {[%emt 0:04:47]} 16. Ng5 {[%emt 0:10:01]} f5 {[%emt 0:02:03]} 17. f4 {[%emt 0:04:24]} Qd7 {[%emt 0:04:32]} 18. Bf3 {[%emt 0:01:18]} Nf6 {[%emt 0:01:17]} 19. Nxe6 {[%emt 0:04:41]} Qxe6 {[%emt 0:00:03]} 20. Bd2 {[%emt 0:02:30]} Ne4 {[%emt 0:01:22]} 21. Rbe1 {[%emt 0:01:02]} Na5 {[%emt 0:01:32]} 22. g4 {[%emt 0:03:23]} Qg6 {[%emt 0:01:24]} 23. g5 {[%emt 0:02:42]} Qc6 {[%emt 0:02:17]} 24. Re3 {[%emt 0:01:03]} Nb7 {[%emt 0:01:00]} 25. Bxe4 {[%emt 0:02:08]} Rxe4 {[%emt 0:00:11]} 26. Rxe4 {[%emt 0:00:08]} fxe4 {[%emt 0:01:17]} 27. f5 {[%emt 0:00:19]} Rf8 {[%emt 0:00:57]} 28. Be3 {[%emt 0:01:35]} Nd6 {[%emt 0:01:07]} 29. f6 {[%emt 0:01:13]} Qd5 {[%emt 0:00:56]} 30. Qf2 {[%emt 0:00:53]} g6 {[%emt 0:01:47]} 31. Bf4 {[%emt 0:00:51]} Nf5 {[%emt 0:01:54]} 32. Be3 {[%emt 0:01:08]} Qd6 {[%emt 0:00:37]} 33. Qe2 {[%emt 0:00:36]} Nh4 {[%emt 0:00:37]} 34. Bf4 {[%emt 0:00:25]} Nf3+ {[%emt 0:00:32]} 35. Qxf3 {[%emt 0:00:30]} exf3 {[%emt 0:00:30]} 36. Bxd6 {[%emt 0:00:01]} cxd6 {[%emt 0:00:10]} 37. Re1 {[%emt 0:00:59]} Rb8 {[%emt 0:01:45]} 38. Kf2 {[%emt 0:00:25]} a5 {[%emt 0:00:31]} 39. Kxf3 {[%emt 0:00:18]} b4 {[%emt 0:00:27]} 40. axb4 {[%emt 0:00:21]} axb4 {[%emt 0:00:02]} 41. cxb4 {[%emt 0:30:55]} c3 {[%emt 0:12:12]} 42. Rc1 {[%emt 0:00:00]} Rxb4 {[%emt 0:01:57]} 43. Ke4 {[%emt 0:00:00]} Rb5 {[%emt 0:02:37]} 44. h4 {[%emt 0:00:00]} h6 {[%emt 0:02:11]} 45. Kf4 {[%emt 0:00:00]} hxg5+ {[%emt 0:05:59]} 46. hxg5 {[%emt 0:00:00]} Rd5 {[%emt 0:01:56]} 47. Rxc3 {[%emt 0:00:00]} Rxd4+ {[%emt 0:00:22]} 48. Ke3 {[%emt 0:00:00]} Rg4 {[%emt 0:00:47]} 49. Rc8+ {[%emt 0:00:36]} Kf7 {[%emt 0:00:25]} 50. Rc7+ {[%emt 0:00:06]} Kf8 {[%emt 0:00:21]} 51. Rc8+ {[%emt 0:01:58]} Kf7 {[%emt 0:00:03]} 52. Rc7+ {[%emt 0:01:25]} Kf8 {[%emt 0:00:09]} 53. Rc8+ {[%emt 0:00:35]} 1/2-1/2

[Event "NOR-ch Various 2019"]
[Site "Larvik"]
[Date "2019.07.07"]
[Round "2.39"]
[White "Huse, Arne Kjelsbol"]
[Black "Carlsen, Christian Heen"]
[Result "1/2-1/2"]
[ECO "B51"]
[WhiteElo "1419"]
[BlackElo "2013"]
[Annotator "NA"]
[PlyCount "75"]
[EventDate "2019.07.06"]
[EventType "swiss"]
[EventCountry "NOR"]
[SourceTitle "playchess.com"]
[Source "ChessBase"]
[SourceQuality "1"]
[TimeControl "40/5400+30:1800+30"]

1. e4 {[%emt 0:00:00]} c5 {[%emt 0:02:28]} 2. Nf3 {[%emt 0:00:00]} d6 {[%emt 0:00:03]} 3. Bb5+ {[%emt 0:00:00]} Nd7 {[%emt 0:00:11]} 4. O-O {[%emt 0:00:00]} Ngf6 {[%emt 0:00:22]} 5. Re1 {[%emt 0:00:02]} g6 {[%emt 0:02:37]} 6. c3 {[%emt 0:00:31]} Bg7 {[%emt 0:00:06]} 7. d4 {[%emt 0:00:10]} cxd4 {[%emt 0:01:58]} 8. cxd4 {[%emt 0:00:09]} O-O {[%emt 0:00:17]} 9. Nc3 {[%emt 0:01:02]} e5 {[%emt 0:02:00]} 10. h3 {[%emt 0:10:17]} a6 {[%emt 0:02:01]} 11. Bc4 {[%emt 0:07:09]} b5 {[%emt 0:02:01]} 12. Bb3 {[%emt 0:00:06]} Bb7 {[%emt 0:05:42]} 13. Bg5 {[%emt 0:00:50]} Re8 {[%emt 0:09:11]} 14. Bd5 {[%emt 0:05:08]} Qb6 {[%emt 0:04:14]} 15. dxe5 {[%emt 0:01:36]} Nxd5 {[%emt 0:08:12]} 16. Nxd5 {[%emt 0:00:15]} Bxd5 {[%emt 0:00:10]} 17. Qxd5 {[%emt 0:03:01]} Nxe5 {[%emt 0:00:58]} 18. Nxe5 {[%emt 0:00:09]} dxe5 {[%emt 0:04:21]} 19. Rac1 {[%emt 0:03:56]} Rac8 {[%emt 0:02:11]} 20. Qd7 {[%emt 0:02:45]} Qb8 {[%emt 0:11:15]} 21. Red1 {[%emt 0:02:27]} h6 {[%emt 0:03:47]} 22. Bh4 {[%emt 0:01:11]} Bf8 {[%emt 0:04:23]} 23. Rc6 {[%emt 0:08:52]} Rxc6 {[%emt 0:01:08]} 24. Qxc6 {[%emt 0:00:09]} Re6 {[%emt 0:00:23]} 25. Qd7 {[%emt 0:02:41]} Rd6 {[%emt 0:00:32]} 26. Rxd6 {[%emt 0:00:34]} Qxd6 {[%emt 0:00:10]} 27. Qe8 {[%emt 0:00:38]} Kg7 {[%emt 0:02:20]} 28. b3 {[%emt 0:11:48]} Qd4 {[%emt 0:09:05]} 29. Qd8 {[%emt 0:02:38]} Qxd8 {[%emt 0:05:09]} 30. Bxd8 {[%emt 0:00:02]} f6 {[%emt 0:00:54]} 31. Kf1 {[%emt 0:00:06]} Kf7 {[%emt 0:00:05]} 32. Ke2 {[%emt 0:01:16]} Be7 {[%emt 0:00:11]} 33. Bb6 {[%emt 0:00:12]} Ke6 {[%emt 0:00:22]} 34. Kd3 {[%emt 0:00:53]} Kd6 {[%emt 0:00:37]} 35. Be3 {[%emt 0:03:58]} h5 {[%emt 0:00:56]} 36. g4 {[%emt 0:04:18]} hxg4 {[%emt 0:00:15]} 37. hxg4 {[%emt 0:00:10]} g5 {[%emt 0:02:34]} 38. Kc3 {[%emt 0:02:22]} 1/2-1/2

[Event "NOR-ch Various 2019"]
[Site "Larvik"]
[Date "2019.07.07"]
[Round "2.40"]
[White "Kristiansen, Willy M"]
[Black "Skagseth, Havard M"]
[Result "1/2-1/2"]
[ECO "A35"]
[WhiteElo "2118"]
[BlackElo "2002"]
[Annotator "NA"]
[PlyCount "46"]
[EventDate "2019.07.06"]
[EventType "swiss"]
[EventCountry "NOR"]
[SourceTitle "playchess.com"]
[Source "ChessBase"]
[SourceQuality "1"]
[TimeControl "40/5400+30:1800+30"]

1. Nf3 {[%emt 0:00:00]} c5 {[%emt 0:00:18]} 2. c4 {[%emt 0:00:02]} Nc6 {[%emt 0:00:41]} 3. Nc3 {[%emt 0:00:27]} g6 {[%emt 0:00:18]} 4. e3 {[%emt 0:00:18]} Nf6 {[%emt 0:00:14]} 5. d4 {[%emt 0:00:47]} cxd4 {[%emt 0:00:08]} 6. exd4 {[%emt 0:00:26]} d5 {[%emt 0:01:13]} 7. cxd5 {[%emt 0:01:51]} Nxd5 {[%emt 0:00:29]} 8. Qb3 {[%emt 0:03:12]} Nxc3 {[%emt 0:03:22]} 9. Bc4 {[%emt 0:03:18]} Nd5 {[%emt 0:02:52]} 10. Bxd5 {[%emt 0:00:09]} e6 {[%emt 0:00:05]} 11. Bxc6+ {[%emt 0:01:09]} bxc6 {[%emt 0:00:08]} 12. O-O {[%emt 0:02:01]} Ba6 {[%emt 0:04:28]} 13. Re1 {[%emt 0:12:34]} Qd5 {[%emt 0:01:26]} 14. Qc2 {[%emt 0:08:00]} Bg7 {[%emt 0:03:09]} 15. Bd2 {[%emt 0:02:09]} O-O {[%emt 0:04:51]} 16. Bb4 {[%emt 0:02:25]} Rfb8 {[%emt 0:11:40]} 17. Bc5 {[%emt 0:02:46]} Rb7 {[%emt 0:02:49]} 18. b3 {[%emt 0:02:06]} Bb5 {[%emt 0:01:39]} 19. a4 {[%emt 0:09:39]} Ba6 {[%emt 0:00:57]} 20. Rab1 {[%emt 0:00:46]} Rab8 {[%emt 0:04:42]} 21. Re3 {[%emt 0:04:41]} Bc4 {[%emt 0:15:51]} 22. Nd2 {[%emt 0:04:11]} Ba6 {[%emt 0:00:22]} 23. Nf3 {[%emt 0:00:26]} Bc4 {[%emt 0:00:42]} 1/2-1/2

[Event "NOR-ch Various 2019"]
[Site "Larvik"]
[Date "2019.07.07"]
[Round "2.41"]
[White "Mansoor, Afras"]
[Black "Laverton, Christian"]
[Result "0-1"]
[ECO "D15"]
[WhiteElo "1991"]
[BlackElo "2115"]
[Annotator "NA"]
[PlyCount "83"]
[EventDate "2019.07.06"]
[EventType "swiss"]
[EventCountry "NOR"]
[SourceTitle "playchess.com"]
[Source "ChessBase"]
[SourceQuality "1"]
[TimeControl "40/5400+30:1800+30"]

1. c4 {[%emt 0:06:00]} c6 {[%emt 0:01:11]} 2. Nf3 {[%emt 0:03:39]} d5 {[%emt 0:00:26]} 3. d4 {[%emt 0:03:02]} Nf6 {[%emt 0:00:51]} 4. Nc3 {[%emt 0:00:08]} a6 {[%emt 0:00:46]} 5. a4 {[%emt 0:01:50]} e6 {[%emt 0:01:06]} 6. e3 {[%emt 0:01:10]} a5 {[%emt 0:03:53]} 7. Be2 {[%emt 0:01:34]} Be7 {[%emt 0:01:15]} 8. O-O {[%emt 0:00:11]} Na6 {[%emt 0:01:48]} 9. Ne5 {[%emt 0:05:44]} O-O {[%emt 0:03:12]} 10. Qb3 {[%emt 0:08:17]} Nd7 {[%emt 0:11:42]} 11. Nxd7 {[%emt 0:07:44]} Qxd7 {[%emt 0:00:18]} 12. Rd1 {[%emt 0:02:39]} Nb4 {[%emt 0:03:45]} 13. e4 {[%emt 0:11:12]} b6 {[%emt 0:06:03]} 14. Be3 {[%emt 0:02:56]} Ba6 {[%emt 0:04:48]} 15. Rac1 {[%emt 0:01:23]} Rab8 {[%emt 0:11:42]} 16. f3 {[%emt 0:05:48]} Rfd8 {[%emt 0:03:59]} 17. Na2 {[%emt 0:02:29]} h6 {[%emt 0:05:13]} 18. Nxb4 {[%emt 0:07:02]} Bxb4 {[%emt 0:00:19]} 19. Rc2 {[%emt 0:00:19]} Qe7 {[%emt 0:03:45]} 20. cxd5 {[%emt 0:04:37]} Bxe2 {[%emt 0:01:12]} 21. Rxe2 {[%emt 0:00:03]} cxd5 {[%emt 0:02:35]} 22. e5 {[%emt 0:02:03]} Rdc8 {[%emt 0:03:22]} 23. Rc2 {[%emt 0:05:13]} Qb7 {[%emt 0:02:56]} 24. Rdc1 {[%emt 0:01:02]} Rxc2 {[%emt 0:03:16]} 25. Qxc2 {[%emt 0:00:05]} b5 {[%emt 0:00:36]} 26. axb5 {[%emt 0:07:44]} Qxb5 {[%emt 0:00:34]} 27. f4 {[%emt 0:01:19]} Bf8 {[%emt 0:02:59]} 28. Bd2 {[%emt 0:00:27]} a4 {[%emt 0:04:08]} 29. Bc3 {[%emt 0:00:19]} Qc4 {[%emt 0:02:13]} 30. Qd1 {[%emt 0:05:55]} Rb3 {[%emt 0:04:12]} 31. Qf1 {[%emt 0:02:32]} Qxf1+ {[%emt 0:06:42]} 32. Kxf1 {[%emt 0:00:06]} Bb4 {[%emt 0:01:11]} 33. Be1 {[%emt 0:01:20]} Bxe1 {[%emt 0:01:24]} 34. Rxe1 {[%emt 0:00:29]} Rxb2 {[%emt 0:00:07]} 35. Ra1 {[%emt 0:00:34]} Rb4 {[%emt 0:00:22]} 36. Rc1 {[%emt 0:00:29]} Rxd4 {[%emt 0:00:50]} 37. g3 {[%emt 0:00:06]} Rc4 {[%emt 0:00:37]} 38. Ra1 {[%emt 0:00:25]} g5 {[%emt 0:00:32]} 39. fxg5 {[%emt 0:00:16]} hxg5 {[%emt 0:00:04]} 40. Ra3 {[%emt 0:01:03]} Kg7 {[%emt 0:00:48]} 41. Kg2 {[%emt 0:30:09]} Rb4 {[%emt 0:31:03]} 42. Rxa4 {[%emt 0:00:33]} 0-1

[Event "NOR-ch Various 2019"]
[Site "Larvik"]
[Date "2019.07.08"]
[Round "3.1"]
[White "Stake-Larsen, Gunnar"]
[Black "Synnestvedt, Jan"]
[Result "1-0"]
[ECO "D02"]
[WhiteElo "1976"]
[BlackElo "1855"]
[Annotator "NA"]
[PlyCount "45"]
[EventDate "2019.07.06"]
[EventType "swiss"]
[EventCountry "NOR"]
[SourceTitle "playchess.com"]
[Source "ChessBase"]
[SourceQuality "1"]
[TimeControl "40/5400+30:1800+30"]

1. d4 {[%emt 0:00:00]} d5 {[%emt 0:00:00]} 2. Bf4 {[%emt 0:00:00]} e6 {[%emt 0:00:00]} 3. e3 {[%emt 0:00:19]} c5 {[%emt 0:01:01]} 4. c3 {[%emt 0:00:19]} Nc6 {[%emt 0:00:11]} 5. Nf3 {[%emt 0:00:57]} Bd6 {[%emt 0:00:29]} 6. Bg3 {[%emt 0:01:25]} Nf6 {[%emt 0:00:46]} 7. Nbd2 {[%emt 0:00:51]} O-O {[%emt 0:00:46]} 8. Bd3 {[%emt 0:01:05]} c4 {[%emt 0:00:50]} 9. Bc2 {[%emt 0:00:46]} b5 {[%emt 0:00:04]} 10. Ne5 {[%emt 0:05:36]} Bxe5 {[%emt 0:02:48]} 11. dxe5 {[%emt 0:00:48]} Nd7 {[%emt 0:00:04]} 12. Nf3 {[%emt 0:02:28]} b4 {[%emt 0:05:14]} 13. O-O {[%emt 0:03:35]} bxc3 {[%emt 0:03:24]} 14. bxc3 {[%emt 0:00:24]} Qc7 {[%emt 0:00:58]} 15. Bxh7+ {[%emt 0:11:17]} Kxh7 {[%emt 0:00:14]} 16. Ng5+ {[%emt 0:00:13]} Kg8 {[%emt 0:02:48]} 17. Qh5 {[%emt 0:00:48]} Rd8 {[%emt 0:01:17]} 18. Qxf7+ {[%emt 0:02:50]} Kh8 {[%emt 0:00:05]} 19. Qh5+ {[%emt 0:02:49]} Kg8 {[%emt 0:00:04]} 20. Qh7+ {[%emt 0:00:37]} Kf8 {[%emt 0:00:09]} 21. Qh8+ {[%emt 0:00:22]} Ke7 {[%emt 0:00:05]} 22. Qxg7+ {[%emt 0:00:21]} Ke8 {[%emt 0:00:03]} 23. Qf7# {[%emt 0:00:05]} 1-0

[Event "NOR-ch Various 2019"]
[Site "Larvik"]
[Date "2019.07.08"]
[Round "3.2"]
[White "Hovden, Hans"]
[Black "Skogheim, Ole Morten"]
[Result "1/2-1/2"]
[ECO "A34"]
[WhiteElo "1810"]
[BlackElo "1968"]
[Annotator "NA"]
[PlyCount "69"]
[EventDate "2019.07.06"]
[EventType "swiss"]
[EventCountry "NOR"]
[SourceTitle "playchess.com"]
[Source "ChessBase"]
[SourceQuality "1"]
[TimeControl "40/5400+30:1800+30"]

1. c4 {[%emt 0:00:00]} e6 {[%emt 0:00:00]} 2. e4 {[%emt 0:00:53]} c5 {[%emt 0:02:22]} 3. Nc3 {[%emt 0:00:30]} Nc6 {[%emt 0:00:47]} 4. d3 {[%emt 0:02:06]} d6 {[%emt 0:02:12]} 5. f4 {[%emt 0:04:07]} Nf6 {[%emt 0:01:58]} 6. Nf3 {[%emt 0:00:45]} Be7 {[%emt 0:06:18]} 7. Be2 {[%emt 0:01:07]} a6 {[%emt 0:01:37]} 8. O-O {[%emt 0:04:10]} Qc7 {[%emt 0:03:19]} 9. Qe1 {[%emt 0:07:44]} Bd7 {[%emt 0:09:05]} 10. Be3 {[%emt 0:12:41]} Ng4 {[%emt 0:11:13]} 11. Bd2 {[%emt 0:00:46]} h5 {[%emt 0:00:22]} 12. h3 {[%emt 0:07:20]} Nf6 {[%emt 0:02:02]} 13. Be3 {[%emt 0:05:14]} O-O-O {[%emt 0:01:19]} 14. a3 {[%emt 0:02:20]} e5 {[%emt 0:01:11]} 15. Nd5 {[%emt 0:04:16]} Nxd5 {[%emt 0:00:13]} 16. cxd5 {[%emt 0:00:33]} Nd4 {[%emt 0:02:03]} 17. Nxd4 {[%emt 0:05:20]} exd4 {[%emt 0:00:43]} 18. Bxd4 {[%emt 0:01:22]} cxd4 {[%emt 0:02:12]} 19. Rc1 {[%emt 0:00:13]} Bc6 {[%emt 0:00:05]} 20. Qd1 {[%emt 0:08:36]} g6 {[%emt 0:08:18]} 21. dxc6 {[%emt 0:01:22]} bxc6 {[%emt 0:00:07]} 22. Qa4 {[%emt 0:02:11]} Kb7 {[%emt 0:01:52]} 23. Qxd4 {[%emt 0:04:13]} Qb6 {[%emt 0:00:17]} 24. Qxb6+ {[%emt 0:00:47]} Kxb6 {[%emt 0:00:02]} 25. d4 {[%emt 0:05:08]} c5 {[%emt 0:01:56]} 26. dxc5+ {[%emt 0:03:14]} dxc5 {[%emt 0:00:08]} 27. Rfd1 {[%emt 0:00:37]} Rd4 {[%emt 0:01:12]} 28. Rxd4 {[%emt 0:01:28]} cxd4 {[%emt 0:00:03]} 29. Rc4 {[%emt 0:04:01]} a5 {[%emt 0:01:58]} 30. b4 {[%emt 0:01:08]} axb4 {[%emt 0:00:19]} 31. axb4 {[%emt 0:00:02]} Rd8 {[%emt 0:00:38]} 32. Bd3 {[%emt 0:00:38]} h4 {[%emt 0:01:44]} 33. Kf1 {[%emt 0:00:24]} g5 {[%emt 0:00:51]} 34. f5 {[%emt 0:02:00]} Bf6 {[%emt 0:02:25]} 35. b5 {[%emt 0:04:26]} 1/2-1/2

[Event "NOR-ch Various 2019"]
[Site "Larvik"]
[Date "2019.07.08"]
[Round "3.3"]
[White "Wessel-Berg, Dag"]
[Black "Mottang, Harald"]
[Result "0-1"]
[ECO "D00"]
[WhiteElo "1486"]
[BlackElo "1559"]
[Annotator "NA"]
[PlyCount "52"]
[EventDate "2019.07.06"]
[EventType "swiss"]
[EventCountry "NOR"]
[SourceTitle "playchess.com"]
[Source "ChessBase"]
[SourceQuality "1"]
[TimeControl "40/5400+30:1800+30"]

1. d4 {[%emt 0:00:00]} d5 {[%emt 0:00:09]} 2. Bf4 {[%emt 0:00:00]} Nf6 {[%emt 0:00:37]} 3. e3 {[%emt 0:00:14]} e6 {[%emt 0:00:29]} 4. Nd2 {[%emt 0:04:11]} c5 {[%emt 0:01:47]} 5. c3 {[%emt 0:00:26]} Nc6 {[%emt 0:00:50]} 6. Bd3 {[%emt 0:00:21]} Bd6 {[%emt 0:02:34]} 7. Bg3 {[%emt 0:00:22]} a6 {[%emt 0:02:38]} 8. a4 {[%emt 0:00:47]} cxd4 {[%emt 0:01:20]} 9. exd4 {[%emt 0:00:26]} Qc7 {[%emt 0:02:56]} 10. Ngf3 {[%emt 0:00:32]} O-O {[%emt 0:01:44]} 11. Qe2 {[%emt 0:00:56]} Bd7 {[%emt 0:02:35]} 12. Ne5 {[%emt 0:00:29]} Rab8 {[%emt 0:03:52]} 13. h4 {[%emt 0:01:26]} b5 {[%emt 0:04:18]} 14. axb5 {[%emt 0:04:03]} axb5 {[%emt 0:04:26]} 15. Nxd7 {[%emt 0:03:57]} Nxd7 {[%emt 0:02:54]} 16. Bxd6 {[%emt 0:00:18]} Qxd6 {[%emt 0:00:15]} 17. g4 {[%emt 0:02:01]} e5 {[%emt 0:03:56]} 18. Bxb5 {[%emt 0:07:29]} exd4 {[%emt 0:00:59]} 19. Bxc6 {[%emt 0:00:17]} Rfe8 {[%emt 0:01:36]} 20. Bxd7 {[%emt 0:02:29]} Rxe2+ {[%emt 0:00:31]} 21. Kxe2 {[%emt 0:00:14]} Qxd7 {[%emt 0:00:24]} 22. f3 {[%emt 0:00:41]} Qe6+ {[%emt 0:02:27]} 23. Kd1 {[%emt 0:01:07]} Re8 {[%emt 0:01:40]} 24. cxd4 {[%emt 0:01:27]} g6 {[%emt 0:02:33]} 25. b4 {[%emt 0:02:14]} Qe2+ {[%emt 0:00:46]} 26. Kc2 {[%emt 0:00:02]} Rc8+ {[%emt 0:00:50]} 0-1

[Event "NOR-ch Various 2019"]
[Site "Larvik"]
[Date "2019.07.08"]
[Round "3.4"]
[White "Ringstad, Kjell"]
[Black "Starli, Atle"]
[Result "0-1"]
[ECO "B50"]
[WhiteElo "1450"]
[BlackElo "1526"]
[Annotator "NA"]
[PlyCount "96"]
[EventDate "2019.07.06"]
[EventType "swiss"]
[EventCountry "NOR"]
[SourceTitle "playchess.com"]
[Source "ChessBase"]
[SourceQuality "1"]
[TimeControl "40/5400+30:1800+30"]

1. e4 {[%emt 0:00:00]} c5 {[%emt 0:00:00]} 2. Nf3 {[%emt 0:00:00]} d6 {[%emt 0:00:00]} 3. h3 {[%emt 0:00:25]} Nf6 {[%emt 0:00:25]} 4. Nc3 {[%emt 0:00:20]} a6 {[%emt 0:00:12]} 5. d3 {[%emt 0:01:22]} e5 {[%emt 0:01:08]} 6. Bg5 {[%emt 0:02:09]} Be7 {[%emt 0:00:58]} 7. Be2 {[%emt 0:01:21]} O-O {[%emt 0:00:16]} 8. O-O {[%emt 0:01:13]} b5 {[%emt 0:01:55]} 9. a3 {[%emt 0:03:55]} Nbd7 {[%emt 0:01:08]} 10. Qd2 {[%emt 0:02:25]} Bb7 {[%emt 0:00:48]} 11. b4 {[%emt 0:02:43]} Rc8 {[%emt 0:02:06]} 12. Rfe1 {[%emt 0:03:06]} Qc7 {[%emt 0:01:48]} 13. Bxf6 {[%emt 0:12:28]} Nxf6 {[%emt 0:00:41]} 14. Nd1 {[%emt 0:02:03]} cxb4 {[%emt 0:00:59]} 15. Ne3 {[%emt 0:01:57]} bxa3 {[%emt 0:02:21]} 16. Rxa3 {[%emt 0:00:16]} d5 {[%emt 0:02:10]} 17. Ra2 {[%emt 0:00:22]} dxe4 {[%emt 0:01:50]} 18. dxe4 {[%emt 0:01:45]} Nxe4 {[%emt 0:01:26]} 19. Qc1 {[%emt 0:01:20]} Nc3 {[%emt 0:02:33]} 20. Ra1 {[%emt 0:02:55]} Rfd8 {[%emt 0:03:48]} 21. Nd2 {[%emt 0:02:55]} Bg5 {[%emt 0:02:19]} 22. Bg4 {[%emt 0:01:20]} Ra8 {[%emt 0:01:57]} 23. Nf3 {[%emt 0:02:07]} Bf6 {[%emt 0:02:54]} 24. Nd1 {[%emt 0:06:19]} Rxd1 {[%emt 0:01:30]} 25. Qe3 {[%emt 0:05:52]} Rxa1 {[%emt 0:01:32]} 26. Rxa1 {[%emt 0:00:14]} g6 {[%emt 0:00:45]} 27. h4 {[%emt 0:02:41]} Rd8 {[%emt 0:04:05]} 28. h5 {[%emt 0:02:15]} Rd1+ {[%emt 0:02:01]} 29. Rxd1 {[%emt 0:00:34]} Nxd1 {[%emt 0:00:14]} 30. Qh6 {[%emt 0:00:34]} Bg7 {[%emt 0:05:42]} 31. Qg5 {[%emt 0:00:28]} h6 {[%emt 0:01:59]} 32. Qd2 {[%emt 0:01:58]} Nc3 {[%emt 0:02:20]} 33. hxg6 {[%emt 0:03:33]} fxg6 {[%emt 0:01:26]} 34. Nh4 {[%emt 0:01:14]} Ne4 {[%emt 0:04:13]} 35. Qe2 {[%emt 0:02:23]} Qc4 {[%emt 0:04:50]} 36. Qxc4+ {[%emt 0:04:02]} bxc4 {[%emt 0:00:19]} 37. Be6+ {[%emt 0:00:19]} Kh7 {[%emt 0:00:17]} 38. Bxc4 {[%emt 0:00:12]} Bf6 {[%emt 0:02:40]} 39. Nf3 {[%emt 0:02:24]} Kg7 {[%emt 0:00:40]} 40. Nh2 {[%emt 0:01:08]} h5 {[%emt 0:00:57]} 41. Nf1 {[%emt 0:32:53]} a5 {[%emt 0:30:49]} 42. Bb5 {[%emt 0:03:53]} Be7 {[%emt 0:01:13]} 43. f3 {[%emt 0:02:15]} Nc3 {[%emt 0:00:56]} 44. Bc4 {[%emt 0:01:47]} Bc5+ {[%emt 0:01:08]} 45. Kh2 {[%emt 0:00:42]} a4 {[%emt 0:00:14]} 46. Nd2 {[%emt 0:00:20]} a3 {[%emt 0:01:02]} 47. Nb3 {[%emt 0:01:27]} Bd4 {[%emt 0:01:38]} 48. Nc1 {[%emt 0:09:15]} Bd5 {[%emt 0:06:15]} 0-1

[Event "NOR-ch Various 2019"]
[Site "Larvik"]
[Date "2019.07.08"]
[Round "3.5"]
[White "Omtvedt, Aleksander"]
[Black "Kyrkjebo, Hanna B."]
[Result "1/2-1/2"]
[ECO "E06"]
[WhiteElo "1871"]
[BlackElo "1915"]
[Annotator "NA"]
[PlyCount "71"]
[EventDate "2019.07.06"]
[EventType "swiss"]
[EventCountry "NOR"]
[SourceTitle "playchess.com"]
[Source "ChessBase"]
[SourceQuality "1"]
[TimeControl "40/5400+30:1800+30"]

1. d4 {[%emt 0:00:21]} Nf6 {[%emt 0:00:32]} 2. Nf3 {[%emt 0:00:22]} e6 {[%emt 0:00:53]} 3. g3 {[%emt 0:03:16]} b6 {[%emt 0:04:39]} 4. Bg2 {[%emt 0:00:25]} Bb7 {[%emt 0:00:40]} 5. O-O {[%emt 0:00:23]} Be7 {[%emt 0:00:57]} 6. c4 {[%emt 0:00:41]} O-O {[%emt 0:06:22]} 7. Qa4 {[%emt 0:03:01]} d5 {[%emt 0:03:44]} 8. Ne5 {[%emt 0:01:09]} c6 {[%emt 0:06:46]} 9. Nc3 {[%emt 0:02:10]} Nfd7 {[%emt 0:07:14]} 10. Nxd7 {[%emt 0:04:58]} Nxd7 {[%emt 0:00:33]} 11. e4 {[%emt 0:01:13]} dxc4 {[%emt 0:06:21]} 12. Qxc4 {[%emt 0:00:55]} c5 {[%emt 0:04:29]} 13. d5 {[%emt 0:02:01]} Ne5 {[%emt 0:01:15]} 14. Qe2 {[%emt 0:02:50]} Qc8 {[%emt 0:06:50]} 15. Rd1 {[%emt 0:05:56]} Ba6 {[%emt 0:03:26]} 16. Qc2 {[%emt 0:03:18]} Rd8 {[%emt 0:06:48]} 17. f4 {[%emt 0:05:00]} Ng6 {[%emt 0:02:27]} 18. a4 {[%emt 0:09:23]} exd5 {[%emt 0:02:58]} 19. Nxd5 {[%emt 0:04:06]} Bf8 {[%emt 0:01:03]} 20. b3 {[%emt 0:06:08]} Ne7 {[%emt 0:04:45]} 21. Nxe7+ {[%emt 0:01:47]} Bxe7 {[%emt 0:00:13]} 22. Bb2 {[%emt 0:00:25]} Qc7 {[%emt 0:06:10]} 23. Qc3 {[%emt 0:04:05]} Bf8 {[%emt 0:00:39]} 24. Kh1 {[%emt 0:04:13]} Rxd1+ {[%emt 0:04:02]} 25. Rxd1 {[%emt 0:00:08]} Rd8 {[%emt 0:00:23]} 26. Rd2 {[%emt 0:02:22]} Rxd2 {[%emt 0:02:20]} 27. Qxd2 {[%emt 0:00:08]} Qd6 {[%emt 0:00:28]} 28. Qxd6 {[%emt 0:02:42]} Bxd6 {[%emt 0:01:01]} 29. e5 {[%emt 0:03:36]} Bc7 {[%emt 0:02:53]} 30. Bd5 {[%emt 0:01:30]} Bc8 {[%emt 0:01:45]} 31. Kg2 {[%emt 0:00:55]} Be6 {[%emt 0:00:44]} 32. Bc4 {[%emt 0:01:35]} h5 {[%emt 0:03:25]} 33. Kf3 {[%emt 0:04:15]} Bf5 {[%emt 0:01:36]} 34. Bd5 {[%emt 0:02:03]} Kf8 {[%emt 0:02:15]} 35. Ke3 {[%emt 0:00:51]} g6 {[%emt 0:02:22]} 36. Bc4 {[%emt 0:02:57]} 1/2-1/2